Cogmind - Beta 11.1 @@@ ROGUE MODE // 2022.04.22 @ 21:25:54 Player: Jaxz Result: Destroyed by G-34 Mercenary with Small Laser Performance ------------- Evolutions (1) 500 Regions Visited (2) 400 Robots Destroyed (14) 70 Value Destroyed (398) 398 Prototype IDs (0) 0 Alien Tech Used (0) 0 Bonus (0) 0 TOTAL SCORE: 1368 Bonus ------- None Cogmind --------- Core Integrity 0/400 Matter 183/300 Energy 99/100 System Corruption 0% Temperature Cool (6) Movement Core (50) Location -9/Materials Parts ------- > --- POWER (1) -------- (None) > --- PROPULSION (2) --- (None) > --- UTILITY (4) ------ (None) > --- WEAPON (2) ------- (None) > --- INVENTORY (5) ---- Ion Engine Aluminum Leg Aluminum Leg Disposable Heat Sink Shield Generator Peak State ------------ > --- POWER ------------ Light Ion Engine > --- PROPULSION ------- Light Treads Light Treads > --- UTILITY ---------- Large Storage Unit ECM Suite > --- WEAPON ----------- Medium Laser Assault Rifle > --- INVENTORY -------- Ion Engine Aluminum Leg Aluminum Leg Aluminum Leg Aluminum Leg Small Storage Unit Medium Storage Unit ECM Suite EM Pulse Gun Grenade Launcher [Rating: 8] Favorites ----------- Power Light Ion Engine Engine Light Ion Engine Propulsion Light Treads Treads Light Treads Leg Aluminum Leg Utility ECM Suite Device ECM Suite Storage Large Storage Unit Weapon Medium Laser Energy Gun Medium Laser Ballistic Gun Assault Rifle Launcher Grenade Launcher Build | -11 -10 -9 ------- Run | Scr Mat Mat Slots Evolved 2 | . . 2 Power . | . . . Propulsion . | . . . Utility 2 | . . 2 Weapon . | . . . Parts Attached 19 | 7 3 9 Power 3 | 1 . 2 Engine 3 | 1 . 2 Core . | . . . Reactor . | . . . Propulsion 5 | 2 . 3 Treads 2 | 2 . . Leg 3 | . . 3 Wheel . | . . . Hover . | . . . Flight . | . . . Utility 5 | 1 2 2 Device 2 | . 1 1 Storage 3 | 1 1 1 Processor . | . . . Hackware . | . . . Protection . | . . . Artifact . | . . . Weapon 6 | 3 1 2 Energy Gun 2 | 1 . 1 Energy Cannon . | . . . Ballistic Gun 3 | 2 1 . Ballistic Cannon . | . . . Launcher 1 | . . 1 Special Weapon . | . . . Impact Weapon . | . . . Slashing Weapon . | . . . Piercing Weapon . | . . . Special Melee Weapon . | . . . Unidentified Prototypes . | . . . Parts Lost 8 | . . 8 Power . | . . . Propulsion 3 | . . 3 Utility 1 | . . 1 Weapon 4 | . . 4 Highest Loss Streak 6 | . . 6 To Critical Strikes . | . . . Average Slot Usage (%) 79 | . 89 70 Engine 12 | . 14 10 Treads 22 | . 28 17 Leg 1 | . . 2 Device 7 | . 4 10 Storage 12 | . 14 10 Energy Gun 11 | . 14 8 Ballistic Gun 11 | . 13 9 Naked Turns 13 | . . 13 Heaviest Build 29 | 11 29 29 Greatest Support 40 | 40 40 40 Greatest Overweight (x) 8 | 2 . 8 Average Overweight (x) . | . . . Largest Inventory Capacity 15 | 8 15 15 Average Capacity 11 | 7 8 14 Most Carried 15 | 6 9 15 Average Carried 8 | 3 6 11 Final Capacity 15 | 8 15 5 Final Carried 9 | 4 9 5 Class Distribution -------------------- 100% | Mutant Dominant Class ---------------- Mutant | -10/Materials Mutant | -9/Materials Resources | -11 -10 -9 ----------- Run | Scr Mat Mat Matter Collected 357 | 207 92 58 Remotely . | . . . Salvage Created 506 | . 137 369 Parts 35 | . 10 25 Haulers Intercepted . | . . . Recyclers Shooed 2 | . 1 1 Parts Field Recycled . | . . . Retrieved Matter . | . . . Parts Self-Destructed . | . . . Prevented . | . . . Kills | -11 -10 -9 ------- Run | Scr Mat Mat Combat Hostiles Destroyed 11 | . 4 7 Guns 9 | . 4 5 AOE 2 | . . 2 Classes Destroyed 6 | . 3 3 Builder 1 | . . 1 Recycler 1 | . . 1 Watcher 1 | . 1 . Swarmer 2 | . 2 . Grunt 7 | . 2 5 Sentry 2 | . . 2 Best Kill Streak 5 | . 3 5 Combat Bots Only 5 | . 2 5 Max Kills in Single Turn 2 | . 1 2 Gunslinging . | . . . Exploded 1 | . . 1 Melee . | . . . Uniques/NPCs Destroyed . | . . . Combat | -11 -10 -9 -------- Run | Scr Mat Mat Damage Taken 1480 | . 240 1240 Core 472 | . 70 402 Absorbed by Shields . | . . . Core Remaining (%) 86 | 100 72 . Volleys Fired 57 | . 29 28 Largest 2 | . 2 2 Hottest 70 | . 70 70 Shots Fired 96 | . 43 53 Gun 93 | . 43 50 Cannon . | . . . Launcher 3 | . . 3 Special . | . . . Kinetic 54 | . 29 25 Thermal 21 | . 14 7 Explosive 3 | . . 3 Electromagnetic 18 | . . 18 Robot Hit Streak 14 | . 7 14 Robot Miss Streak 3 | . 3 2 Penetration Max . | . . . Secondary Targets 4 | . 1 3 Max Gunslinging Chain 1 | . 1 1 Shots Hit Robots 65 | . 27 38 Core Hits 38 | . 10 28 Critical Kills . | . . . Critical Parts Destroyed 1 | . 1 . Critical Strikes 4 | . 3 1 Burn 3 | . 2 1 Destroy 1 | . 1 . Melee Attacks . | . . . Impact . | . . . Slashing . | . . . Piercing . | . . . Sneak Attacks . | . . . Combat Hostiles . | . . . Follow-up Attacks . | . . . Damage Inflicted 1237 | . 308 929 Guns 780 | . 308 472 Cannons . | . . . Explosions 453 | . . 453 Melee . | . . . Ramming 4 | . . 4 Kinetic 381 | . 159 222 Thermal 331 | . 149 182 Explosive 334 | . . 334 Electromagnetic 187 | . . 187 Impact . | . . . Slashing . | . . . Piercing . | . . . Highest Corruption . | . . . Average Corruption . | . . . Corruption Purged . | . . . Corruption Blocked . | . . . Overload Shots . | . . . Overflow Damage 21 | . . 21 Projectiles . | . . . Explosions 21 | . . 21 Melee . | . . . Knockbacks . | . . . Impact . | . . . Kinetic . | . . . Secondary . | . . . Self-Inflicted Damage 73 | . . 73 Shots 3 | . . 3 Rammed . | . . . Targets Rammed 3 | . . 3 Kicked 3 | . . 3 Crushed . | . . . Highest Temperature 110 | . 110 60 Average Temperature 29 | . 42 17 Received Heat Transfer 636 | . 96 540 Siege Activations . | . . . Robots Corrupted . | . . . Combat Hostiles . | . . . Parts Fried . | . . . Impact Corruptions . | . . . Robots Melted . | . . . Combat Hostiles . | . . . Parts Melted 2 | . 2 . Heat Transferred 1101 | . 592 509 Parts Sabotaged . | . . . Parts Stolen . | . . . Parts Stripped . | . . . Power Chain Reactions 1 | . . 1 Missiles Intercepted . | . . . Alert | -11 -10 -9 ------- Run | Scr Mat Mat Peak Influence 179 | . 122 179 Initial . | . . . Average 40 | . 51 36 Maximum Alert Level . | . . . Low Security (%) 100 | 100 100 100 Level 1 . | . . . Level 2 . | . . . Level 3 . | . . . Level 4 . | . . . Level 5 . | . . . High Security . | . . . Max Security . | . . . Squads Dispatched 4 | . 1 3 Investigation 2 | . . 2 Extermination . | . . . Reinforcement 2 | . 1 1 Assault . | . . . Garrison . | . . . Intercept . | . . . Searches Triggered . | . . . Construction Impeded 1 | . . 1 Haulers Reinforced . | . . . Active Scanning Responses . | . . . Cargo Convoy Interrupts . | . . . Stealth | -11 -10 -9 --------- Run | Scr Mat Mat Distress Signals 1 | . 1 . Communications Jammed . | . . . Distress Signals . | . . . Times Spotted 29 | . 10 19 Peak Tracking Total 8 | . 4 8 Tactical Retreats 2 | . . 2 Traps | -11 -10 -9 ------- Run | Scr Mat Mat Traps Triggered 2 | . . 2 Indirectly . | . . . Trap Hack Attempts . | . . . Triggered . | . . . Disarmed . | . . . Reprogrammed . | . . . Reused . | . . . Traps Extracted . | . . . Installed . | . . . Triggered . | . . . Machines | -11 -10 -9 ---------- Run | Scr Mat Mat Machines Disabled 1 | . . 1 Max in Single Turn 1 | . . 1 Machines Sabotaged . | . . . Garrisons Compromised . | . . . Overloaded Fab Kills . | . . . Hacking | -11 -10 -9 --------- Run | Scr Mat Mat Machines Accessed 2 | . 1 1 Terminals 1 | . 1 . Fabricators . | . . . Repair Stations . | . . . Recycling Units . | . . . Scanalyzers 1 | . . 1 Garrison Access . | . . . Total Hacks 10 | . 1 9 Successful 8 | . . 8 Failed 2 | . 1 1 Catastrophic . | . . . Database Lockouts . | . . . Manual . | . . . Terminals 1 | . 1 . Fabricators . | . . . Repair Stations . | . . . Recycling Units . | . . . Scanalyzers 9 | . . 9 Garrison Access . | . . . Terminal Hacks . | . . . Fabricator Hacks . | . . . Repair Station Hacks . | . . . Recycling Unit Hacks . | . . . Scanalyzer 8 | . . 8 Insert Component 4 | . . 4 Analyze 4 | . . 4 Garrison Access Hacks . | . . . Unauthorized Hacks . | . . . Terminals . | . . . Fabricators . | . . . Repair Stations . | . . . Recycling Units . | . . . Scanalyzers . | . . . Garrison Access . | . . . Data Cores Recovered . | . . . Used . | . . . Hacking Detections 1 | . 1 . Full Trace Events . | . . . Feedback Events . | . . . Feedback Blocked . | . . . Robot Schematics Acquired . | . . . Robots Built . | . . . Authchips . | . . . Time . | . . . Total Robot Build Rating . | . . . Part Schematics Acquired 4 | . . 4 Parts Built . | . . . Authchips . | . . . Time . | . . . Total Part Build Rating . | . . . Parts Repaired . | . . . Time . | . . . Parts Recycled . | . . . Recycled Matter . | . . . Retrieved Matter . | . . . Retrieved Components . | . . . Parts Scanalyzed 4 | . . 4 Part Schematics Acquired 4 | . . 4 Parts Damaged . | . . . Bothacking | -11 -10 -9 ------------ Run | Scr Mat Mat Used RIF Installer . | . . . Robots Hacked . | . . . Non-combat . | . . . Combat . | . . . Robot Hacks Applied . | . . . Relay Couplers Released . | . . . Fabnet Peak Effective % . | . . . Robots Rewired . | . . . Allies Hacked . | . . . Hacks Repelled . | . . . Allies | -11 -10 -9 -------- Run | Scr Mat Mat Total Allies . | . . . Largest Group . | . . . Highest-Rated Group . | . . . Highest-Rated Ally . | . . . Total Orders . | . . . Ally Attacks . | . . . Total Damage . | . . . Kills . | . . . Allies Corrupted . | . . . Allies Melted . | . . . Intel | -11 -10 -9 ------- Run | Scr Mat Mat Robot Analysis Total . | . . . Derelict Logs Recovered . | . . . Drone Launches . | . . . Drone Recoveries . | . . . Exploration | -11 -10 -9 ------------- Run | Scr Mat Mat Turns Passed 983 | 75 428 480 Spaces Moved 446 | 47 200 199 Core 44 | 18 . 26 Treads 366 | 29 200 137 Legs 36 | . . 36 Wheels . | . . . Hover . | . . . Flight . | . . . Fastest Speed 50 | 50 160 50 Average Speed 147 | 124 160 140 Slowest Speed 450 | 160 160 450 Overloaded Moves . | . . . Propulsion Burnouts . | . . . Robots Hopped . | . . . Cave-ins Triggered . | . . . Exploration Rate (%) 21 | 4 34 26 Regions Visited 2 Branch Regions . Pre-discovered Areas . | . . . Known Exits Taken . | . . . Unknown Exits Taken 2 | 1 1 . Scrap Searched . | . . . Spaces Dug . | . . . Terrain Destroyed 10 | . . 10 Melee . | . . . Projectile . | . . . AOE 10 | . . 10 Terrain Rammed . | . . . Walls Destroyed . | . . . Machines Disabled . | . . . Actions | -11 -10 -9 --------- Run | Scr Mat Mat Total 680 | 63 271 346 Wait 129 | . 32 97 Move 444 | 46 199 199 Hop . | . . . Pick Up 23 | 10 6 7 Fast Attach 1 | . 1 . Attach 14 | 6 1 7 Detach . | . . . Swap 4 | 1 1 2 Drop 5 | . 2 3 Fire 57 | . 29 28 Melee . | . . . Ram . | . . . Kick 3 | . . 3 Crush . | . . . Escape Stasis . | . . . Rewire . | . . . Trap . | . . . Miscellaneous . | . . . Route ------- -11/Scrapyard -10/Materials (discovered 2 exits: *Mat / [*Min]) -9/Materials (discovered 1 exit: [*Mat]) History --------- Turn | Location | Event 42 | -11/Scrapyard | Discovered new exit (range 12) 76 | -11/Scrapyard | Entered Materials 102 | -10/Materials | Discovered new exit (range 15) 270 | -10/Materials | Discovered new exit (range 15) 305 | -10/Materials | Build established: Mutant 504 | -10/Materials | Entered another Materials area 504 | -9/Materials | Evolved 2 slots: Utility x2 971 | -9/Materials | Released all parts (5) 972 | -9/Materials | Core integrity fell below 50% 977 | -9/Materials | Core integrity fell below 20% 981 | -9/Materials | Discovered new exit (range 16) 984 | -9/Materials | Destroyed by G-34 Mercenary with Small Laser Last Messages --------------- 00944_ Triggered Alarm Trap. 00944_ An alarm sounds. 00944_ ALERT: Alarm triggered, dispatching investigation squad. 00965_ Atomic Centrifuge disabled. 00967_ Destroyed Heat Sink. 00969_ U-05 Engineer lays Concrete. 00969_ U-05 Engineer destroyed. 00969_ G-47 Trooper destroyed. 00970_ ALERT: Construction progress impeded, dispatching reinforcements to local area. 00970_ Grenade Launcher destroyed. 00971_ K-01 Serf collects debris. 00971_ Released ECM Suite. 00971_ Released Ion Engine. 00971_ Released Med. Storage Unit. 00971_ Released Aluminum Leg. 00975_ K-01 Serf collects debris. 00977_ A-02 Transporter destroyed. 00978_ K-01 Serf collects debris. 00981_ EXIT=FOUND Map ----- +----------------------------------------------------+ | | | | | | | | | | | | | | | | | | | | | ?????????????????????????????????????????????????? | | ?????????????????????????????????????????????????? | | ?????????????????????????????????????????????????? | | ?????????????????????????????????????????????????? | | ?????????????????????????????????????????????????? | | ?????????????????????????????????????????????????? | | ?????????????????????????????????????????????????? | | ?????????????????????????????????????????????????? | | ?????????????????????????????????????????????????? | | ?????????????????????????????????????????????????? | | ?????????????????????????????????????????????????? | | ??????????????????????????????????#######????????? | | ?????????????######+###########+### #????????? | | ?????????????# #######??? | | ?????????????# < gu # ???? | | ?????????????# @ g # ???? | | ?????????????????################## # ????? | | ???????????????????????????######### ##! !????? | | ???????????????????????????# !! #!=!## ?????? | | ???????????????????????????# ! #=%!## ?????? | | ???????????????????????????# !*+!= ###/####### | | ???????????????????????????# =% | | ??????????????????????????## = | | ??????????????????????????# | | ??????????????????????????## % ############### | | ??????????????????????????## #????????????# | | ??????????????????????????# #????????????# | | ??????????????????????????##!= ##????????????# | | ??????????????????????????#*!!= #?????????????# | | ??????????????????????????##########?????????????# | | ?????????????????????????????????????????????????# | | ?????????????????????????????????????????????????# | | ???????????????????????????????????????????????! | | ??????????????????????????????????????????????!! | | ?????????????????????????????????????????????#!! | | ?????????????????????????????????????????????#!! | | ?????????????????????????????????????????????#** | | ?????????????????????????????????????????????#** | | ?????????????????????????????????????????????##### | | ?????????????????????????????????????????????????# | +----------------------------------------------------+ Best States ------------- Heat Dissipation 28 Energy Generation 10 Energy Capacity 250 Matter Stores 300 Matter Capacity 300 Sight Range 16 Terrain Scan Density 10 ECM Strength 1 Evasion (%) 55 Recoil Reduction 2 Item Schematics ----------------- ECM Suite | -9/Materials | Scanalyzed Ion Engine | -9/Materials | Scanalyzed Sml. Storage Unit | -9/Materials | Scanalyzed Aluminum Leg | -9/Materials | Scanalyzed Robot Schematics ------------------ None Fabricated ------------ Nothing Alien Tech Used ----------------- None Achievements -------------- None Challenges ------------ None Game ------ Seed TransmissionLinearLoader Manual? 0 Play Time 00:24:15 Cumulative 36.1 hours Start 2022.04.22 @ 21:05:22 End 2022.04.22 @ 21:25:54 Sessions 1 Manual Loads 0 Difficulty Rogue Special Mode None Game No. 52 Rogue 44 Adventurer 3 Explorer 5 Win Type - Total 0 Types 0/0/0/0/0/0/0/0/0 Lore% 10 Gallery% 27 Achievement% 16 Wizard Run 0 Options --------- ASCII 0 Keyboard 0 Movement Mouse Keybinds 0 Fullscreen 1 Font 18/SmallcapsGlow Map View 76x50 Tactical HUD 1 Map Filters NONE Filters NONE Steam 1 RUN: 67dad2ef-41fb-4d77-ad5d-b6a31a755e74